bitfinex/quotes_ETHUSD_20260305
["timestamp","ask_amount","ask_price","bid_price","bid_amount"]
[1772728190876,7.6985274,2072.9,2072.1,0.0011]
[1772728191191,7.6985274,2072.9,2072.3,0.0011]
[1772728191379,0.001,2072.7,2072.3,0.0011]
[1772728192486,5.89190147,2072.7,2072.3,0.0011]
[1772728194116,1.20621441,2072.6,2072.3,0.0011]
[1772728194267,7.09711588,2072.6,2072.3,0.0011]
[1772728196616,1.20621463,2072.6,2072.3,0.0011]
[1772728197922,5.89090147,2072.4,2072.0,0.0011]
[1772728198076,7.0972905,2072.3,2072.0,0.0011]
[1772728198813,1.435,2072.5,2072.0,0.0011]
[1772728199024,0.001,2072.7,2072.0,6.14181834]
[1772728199379,1.20716539,2072.7,2072.0,6.14181834]
[1772728199799,0.001,2072.7,2072.0,6.14181834]
[1772728200121,5.89190147,2072.7,2072.1,6.14071834]
[1772728200422,5.89190147,2072.7,2072.0,0.0011]
[1772728200621,5.89190147,2072.7,2072.0,7.34838031]
[1772728200926,1.438,2072.7,2072.0,7.34838031]
[1772728201285,7.32890147,2072.7,2072.0,7.34838031]
[1772728201519,0.001,2072.7,2072.0,7.34838031]
[1772728202028,5.89190147,2072.7,2072.0,1.20765501]
[1772728202225,7.09711588,2072.6,2072.0,0.0011]
[1772728202503,1.20621441,2072.6,2072.0,6.14181834]
[1772728202927,1.20718889,2072.7,2072.0,6.14181834]
[1772728203106,1.20716085,2072.7,2072.0,6.14181834]
[1772728203301,0.001,2072.7,2072.0,6.14181834]
[1772728203604,0.001,2072.9,2072.0,6.14181834]
[1772728203605,1.20704871,2072.9,2072.3,6.14071834]
[1772728203793,7.09794545,2072.9,2072.2,0.0011]
[1772728203996,0.001,2072.9,2072.2,6.14181834]
[1772728204194,0.001,2072.9,2072.3,7.34710737]
[1772728204925,0.001,2072.9,2072.4,1.089]
[1772728205127,0.001,2072.9,2072.4,7.22971834]
[1772728205704,0.001,2072.9,2072.4,6.14071834]
[1772728206121,0.001,2072.9,2072.4,7.34704703]
[1772728206438,0.001,2072.9,2072.4,7.34702697]
[1772728207550,6.26399604,2073.5,2072.4,3.43716647]
[1772728207551,1.441,2073.5,2072.4,3.43716647]
[1772728207722,1.16490749,2073.7,2072.9,6.14071834]
[1772728207926,1.16490749,2073.7,2073.1,6.14071834]
[1772728208253,1.16490749,2073.7,2073.2,1.20586532]
[1772728208432,1.16490749,2073.7,2073.2,7.34658366]
[1772728209444,1.16490749,2073.7,2073.1,5.91446131]
[1772728209445,8.26140353,2073.7,2073.1,1.091]
[1772728209649,7.05580896,2073.7,2073.1,2.29691855]
[1772728209946,1.16490749,2073.7,2073.2,6.14071834]
[1772728210348,1.16490749,2073.7,2073.3,7.3465255]
[1772728210846,0.001,2073.8,2073.3,7.3465255]
[1772728211443,0.001,2073.8,2073.2,1.20584591]
[1772728211645,7.09743037,2073.8,2073.2,1.20584591]
[1772728211949,7.09743037,2073.8,2073.1,2.29792138]
[1772728212441,5.89190147,2073.8,2073.1,2.2978945]
[1772728212746,0.001,2073.8,2073.2,6.03076331]
[1772728213364,1.442,2074.5,2073.2,6.03076331]
[1772728213643,5.89090147,2074.6,2073.4,6.03076331]
[1772728213848,5.89090147,2074.5,2073.4,6.03076331]
[1772728214051,5.89090147,2074.5,2073.4,7.12476331]
[1772728214357,5.89090147,2074.1,2072.7,6.03076331]
[1772728214542,5.89090147,2073.7,2072.7,7.23691808]
[1772728214938,5.89090147,2073.7,2072.7,1.20615477]
[1772728215141,5.89090147,2073.5,2072.6,1.094]
[1772728215456,5.89090147,2073.5,2072.4,1.20627776]
[1772728215657,2.56028194,2073.6,2072.2,0.0011]
[1772728215658,5.89090147,2073.3,2072.2,0.0011]
[1772728215869,5.89090147,2073.3,2072.2,1.20753557]
[1772728216160,5.89090147,2073.3,2072.2,0.0011]
[1772728216319,5.89090147,2073.1,2072.2,1.20753403]
[1772728216519,5.89090147,2073.2,2072.2,0.0011]
[1772728217352,1.441,2073.1,2072.2,0.0011]
[1772728217542,5.89090147,2073.1,2072.2,6.03186331]
[1772728218256,5.89090147,2073.1,2072.2,0.0011]
[1772728218547,5.89090147,2072.9,2072.2,0.0011]
[1772728219824,5.89090147,2072.9,2072.0,0.0011]
[1772728220050,5.85538667,2072.7,2071.8,0.0011]
[1772728220242,5.85538667,2072.7,2071.8,1.20776827]
[1772728220625,7.06160108,2072.6,2071.8,0.0011]
[1772728221454,5.85538667,2072.8,2071.8,6.03296331]
[1772728222165,5.85538667,2072.8,2071.8,0.0011]
[1772728222867,5.85538667,2072.6,2071.8,0.0011]
[1772728223030,7.29638667,2072.6,2071.8,0.0011]
[1772728223669,5.85538667,2072.6,2071.8,0.0011]
[1772728224371,5.85538667,2072.6,2071.6,7.2200718]
[1772728224565,1.20613739,2072.8,2071.6,7.2200718]
[1772728224776,7.06152406,2072.8,2071.6,7.2200718]
[1772728225469,7.06152406,2072.8,2071.5,4.8274152]
[1772728225470,5.85538667,2072.3,2071.4,0.0011]
[1772728225772,7.29638667,2072.3,2071.4,1.20801253]
[1772728225941,5.85538667,2072.3,2071.4,1.20800278]
[1772728226660,5.85538667,2072.5,2071.4,7.23986609]
[1772728226863,7.06168397,2072.5,2071.4,8.33686609]
[1772728227065,7.06168397,2072.5,2071.5,6.03186331]
[1772728227066,7.06166802,2072.5,2071.5,6.03186331]
[1772728227365,5.85538667,2072.5,2071.5,6.03186331]
[1772728227685,5.85538667,2072.5,2071.8,0.0011]
[1772728227841,6.2324776,2073.0,2071.8,6.03296331]
[1772728228033,6.2334776,2072.9,2071.8,6.03296331]
[1772728228436,6.2334776,2072.9,2071.8,0.0011]
[1772728229862,6.2324776,2072.7,2071.8,0.0011]
[1772728230078,1.20609803,2072.8,2071.8,0.0011]
[1772728230079,6.2324776,2072.5,2071.8,0.0011]
[1772728232081,6.2324776,2072.3,2071.5,0.0011]
[1772728232698,1.441,2072.2,2071.5,0.0011]
[1772728232989,7.6734776,2072.2,2071.5,0.0011]
[1772728234392,6.2324776,2072.0,2071.5,0.0011]
[1772728235494,1.20650547,2072.1,2071.5,0.0011]
[1772728236751,7.43898307,2072.1,2071.5,0.0011]
[1772728237278,7.43898307,2072.1,2071.4,0.0011]
[1772728238963,6.2324776,2072.0,2071.4,0.0011]
[1772728239351,6.2324776,2071.8,2071.1,0.08184128]
[1772728239574,6.2324776,2071.6,2071.1,0.08184128]
[1772728239771,7.6744776,2071.6,2071.1,0.08184128]
[1772728240289,7.6744776,2071.6,2071.5,0.0011]
[1772728240490,7.6744776,2071.6,2070.9,0.0011]
[1772728240692,7.43933253,2071.5,2071.2,0.0011]
[1772728240893,1.20681746,2071.6,2071.2,0.0011]
[1772728241092,8.88129506,2071.6,2071.2,0.0011]
[1772728242494,6.2324776,2071.5,2070.9,0.0011]
[1772728242694,7.43939079,2071.4,2070.9,0.0011]
[1772728243889,1.20691319,2071.4,2070.9,0.0011]
[1772728244679,2.64990011,2071.5,2070.9,0.0011]
[1772728245276,8.88237771,2071.5,2070.9,0.0011]
[1772728245477,6.2324776,2071.4,2070.9,0.0011]
[1772728245887,2.64990011,2071.5,2070.9,0.0011]
[1772728246606,0.001,2072.0,2071.2,6.03296331]
[1772728246797,7.43872618,2072.6,2071.2,6.03196331]
[1772728247000,2.84128725,2072.5,2071.2,7.12796331]
[1772728247300,6.2324776,2072.4,2071.2,7.12796331]
[1772728247512,7.43872618,2072.6,2071.2,7.12796331]
[1772728247679,1.445,2072.5,2071.2,7.12796331]
[1772728247874,0.001,2072.9,2071.2,7.12796331]
[1772728247875,6.2334776,2072.9,2071.4,6.03196331]
[1772728248074,0.001,2072.9,2071.6,6.03196331]
[1772728248694,0.001,2072.9,2071.8,6.03196331]
[1772728248891,0.001,2072.9,2072.0,6.03196331]
[1772728250903,0.001,2072.9,2072.2,6.03196331]
[1772728251783,1.20571699,2073.5,2072.2,6.03096331]
[1772728251983,7.19882449,2073.5,2072.2,6.03096331]
[1772728252606,0.001,2072.3,2072.2,6.03096331]
[1772728252788,7.19882449,2073.5,2072.2,7.12596331]
[1772728253514,1.446,2073.6,2072.4,6.03096331]
[1772728253812,2.65167671,2073.6,2072.4,6.03096331]
[1772728254012,5.9931075,2073.5,2072.3,7.23735234]
[1772728255815,1.20572096,2073.5,2072.3,7.23735234]
[1772728256119,4.82256446,2073.6,2072.3,7.23735234]
[1772728256120,10.81579257,2073.6,2072.3,7.23735234]
[1772728256292,7.19874021,2073.6,2072.3,7.23735234]
[1772728256888,5.9931075,2073.6,2072.3,7.23735234]
[1772728257089,7.1986034,2073.9,2072.5,6.03096331]
[1772728257294,7.1986034,2073.9,2072.7,6.03096331]
[1772728257801,7.1986034,2073.9,2072.9,6.03096331]
[1772728259822,7.1986034,2073.9,2073.0,1.20598166]
[1772728260158,7.1986034,2073.9,2073.0,7.23694497]
[1772728260545,7.1986034,2073.9,2073.0,6.03096331]
[1772728260719,5.9931075,2073.8,2072.7,7.23708259]
[1772728260923,5.9931075,2073.8,2072.7,1.20611928]
[1772728261133,5.9931075,2073.8,2072.7,7.23708259]
[1772728261334,8.82569823,2074.2,2072.7,7.23708259]
[1772728261335,0.001,2074.3,2072.7,7.23708259]
[1772728261567,0.001,2074.3,2073.1,6.0112297]
[1772728261768,0.001,2074.3,2073.4,1.20574901]
[1772728261939,0.001,2074.3,2073.5,6.0112297]
[1772728262260,0.001,2074.3,2073.4,1.20574901]
[1772728262261,7.25795389,2074.7,2073.6,6.0112297]
[1772728262430,7.25795389,2074.7,2073.4,1.20574901]
[1772728262431,7.25877649,2075.0,2073.8,6.0112297]
[1772728263252,7.25877649,2075.0,2073.5,7.1072297]
[1772728263463,7.25877649,2075.0,2073.7,6.0112297]
[1772728263464,0.001,2075.0,2073.7,6.0112297]
[1772728263626,0.001,2075.0,2073.9,6.0112297]
[1772728263820,0.001,2075.0,2074.1,7.3253552]
[1772728264023,1.20447099,2075.6,2074.3,6.0112297]
[1772728264251,1.20434191,2075.9,2074.5,6.0112297]
[1772728264471,6.05291571,2076.0,2074.2,1.31102099]
[1772728264472,7.25717996,2076.0,2074.7,6.0112297]
[1772728264669,7.25717996,2076.0,2074.8,7.1072297]
[1772728265569,7.25717996,2076.0,2074.5,5.91865812]
[1772728265770,5.89189337,2075.8,2074.6,7.08019412]
[1772728266364,7.09630633,2075.7,2074.7,1.20499349]
[1772728266998,7.09630633,2075.7,2074.6,1.20501169]
[1772728267157,5.89189337,2075.6,2074.4,1.096]
[1772728267363,2.64241296,2075.7,2074.0,7.12401954]
[1772728267364,5.89189337,2075.5,2074.0,7.12401954]
[1772728268284,7.09642865,2075.5,2074.0,7.12401954]
[1772728268653,7.09642865,2075.5,2074.2,5.91865812]
[1772728269394,7.09642865,2075.5,2074.1,1.095]
[1772728269759,6.25956974,2075.4,2074.1,7.12496331]
[1772728269955,6.25956974,2075.4,2074.1,6.02996331]
[1772728270331,6.25956974,2075.2,2073.9,1.095]
[1772728270471,6.25956974,2075.2,2073.8,1.2947347]
[1772728271370,6.25956974,2075.2,2073.8,7.32469801]
[1772728271583,7.69956974,2075.2,2073.8,7.32469801]
[1772728272362,6.25956974,2075.0,2073.8,7.32469801]
[1772728272564,6.25956974,2075.0,2073.8,8.41969801]
[1772728274369,6.25956974,2075.0,2073.9,6.02996331]
[1772728274570,7.4642729,2075.2,2074.1,6.02996331]
[1772728276005,6.25956974,2075.2,2074.1,7.12496331]
[1772728276301,7.46413466,2075.5,2074.1,7.12496331]
[1772728276717,0.001,2074.8,2074.3,6.02996331]
[1772728277365,0.001,2074.8,2074.1,1.20531599]
[1772728277618,6.26056974,2074.8,2074.0,1.20646299]
[1772728277890,6.26056974,2074.8,2074.0,2.30246299]
[1772728278094,6.26056974,2074.8,2074.0,0.0011]
[1772728278294,6.26056974,2074.8,2074.0,1.20649981]
[1772728279068,1.20499349,2074.7,2074.0,0.0011]
[1772728279692,0.001,2074.8,2074.0,0.0011]
[1772728279884,0.001,2074.8,2074.0,5.98156382]
[1772728280403,11.13227246,2075.5,2074.0,5.98156382]
[1772728281293,7.51852771,2075.5,2074.2,5.98046382]
[1772728281492,7.51852771,2075.5,2074.3,7.07646382]
[1772728281695,6.31399869,2075.5,2074.3,7.07646382]
[1772728281990,7.51853665,2075.5,2074.3,7.07646382]
[1772728282393,7.51853665,2075.5,2074.3,5.98046382]
[1772728282600,7.51853665,2075.5,2074.4,1.096]
[1772728283181,7.51853665,2075.5,2074.5,1.20510966]
[1772728283493,4.81745373,2075.8,2074.2,1.20528396]
[1772728283494,6.31399869,2075.7,2074.2,1.20528396]
[1772728285354,6.31399869,2075.4,2074.0,2.30245913]
[1772728285475,6.31399869,2075.2,2074.0,2.30245913]
[1772728286172,6.31399869,2075.2,2074.0,2.30345913]
[1772728287209,1.20476121,2075.1,2074.0,2.30345913]
[1772728287409,6.40048966,2075.0,2074.0,2.30345913]
[1772728288179,6.40048966,2075.0,2074.0,2.30349539]
[1772728289304,6.40048966,2074.8,2074.0,2.30349539]
[1772728290308,6.40048966,2074.8,2074.2,0.0011]
[1772728290711,6.40148966,2074.8,2074.2,0.0011]
[1772728291138,6.40148966,2074.8,2074.0,1.20649142]
[1772728291312,1.20499349,2074.7,2074.0,0.0011]
[1772728291492,7.60548315,2074.7,2074.0,0.0011]
[1772728292297,6.40048966,2074.7,2074.0,0.0011]
[1772728293310,0.001,2074.8,2074.1,6.03106331]
[1772728293511,0.001,2074.8,2074.1,7.23640538]
[1772728293925,0.001,2074.8,2074.2,1.097]
[1772728294352,0.001,2074.8,2074.2,7.12806331]
[1772728294708,0.001,2074.8,2074.3,7.12906331]
[1772728295047,1.441,2075.7,2074.3,7.12906331]
[1772728295048,7.60485147,2075.8,2074.4,6.03106331]
[1772728295255,6.40048966,2075.8,2074.6,6.03106331]
[1772728295411,0.001,2075.7,2074.8,6.03106331]
[1772728295609,6.40048966,2076.1,2075.0,6.03106331]
[1772728295610,0.001,2076.0,2075.0,6.03106331]
[1772728295856,6.40048966,2076.1,2075.0,6.03106331]
[1772728296002,0.001,2076.0,2075.0,6.03106331]
[1772728297033,7.60447701,2076.5,2075.0,6.2450843]
[1772728297273,11.21573426,2076.8,2075.0,6.2450843]
[1772728297455,11.21573426,2076.8,2075.2,6.03006331]
[1772728297456,10.46277283,2076.7,2075.2,6.03006331]
[1772728297629,10.46277283,2076.7,2075.4,6.03006331]
[1772728297630,7.60433482,2076.7,2075.4,6.03006331]
[1772728297831,7.60433482,2076.7,2075.6,6.03006331]
[1772728298534,0.91414076,2077.2,2075.8,4.12806331]
[1772728298754,0.91414076,2077.2,2075.7,1.098]
[1772728298755,2.11769863,2077.2,2076.2,4.12806331]
[1772728298957,0.91414076,2077.2,2076.0,4.12806331]
[1772728299130,7.60368534,2077.9,2076.4,4.12806331]
[1772728299532,7.60368534,2077.9,2076.5,2.30194895]
[1772728299730,7.60368534,2077.9,2076.4,1.20398208]
[1772728300049,7.60368534,2077.9,2076.5,1.098]
[1772728300647,7.60368534,2077.9,2076.6,4.12806331]
[1772728300854,7.60368534,2077.9,2076.6,1.098]
[1772728301031,6.40048966,2077.7,2076.4,0.08154442]
[1772728301350,1.20342736,2077.4,2076.4,1.2855489]
[1772728301529,6.40048966,2077.3,2076.4,1.2855489]
[1772728301958,1.20342736,2077.4,2076.4,1.2855489]
[1772728302950,7.60387025,2077.5,2076.4,1.2855489]
[1772728305379,7.60387025,2077.5,2076.4,1.28554139]
[1772728305540,7.60387025,2077.5,2076.4,0.08154442]
[1772728305749,6.40048966,2077.4,2075.8,4.81726694]
[1772728306284,6.40048966,2077.2,2075.8,4.81726694]
[1772728306431,6.40048966,2077.0,2075.8,4.81726694]
[1772728307029,6.40048966,2077.0,2075.8,1.098]
[1772728307264,6.40048966,2077.0,2075.8,1.20435494]
[1772728307674,6.40048966,2077.0,2075.7,0.00757309]
[1772728307836,6.40048966,2077.0,2075.7,1.21198248]
[1772728308168,6.40048966,2076.8,2075.7,5.42159021]
[1772728308544,6.40048966,2076.8,2075.7,1.21198248]
[1772728308871,6.40048966,2076.8,2075.8,1.098]
[1772728309243,6.40048966,2076.8,2075.8,1.21103218]
[1772728309473,6.40048966,2076.8,2075.9,0.10781663]
[1772728310263,7.38752647,2076.7,2076.0,1.20423892]
[1772728311162,7.38735259,2077.0,2076.0,1.20423892]
[1772728311762,7.38735259,2077.0,2075.9,0.10781663]
[1772728311964,7.38735259,2077.0,2075.9,1.31207414]
[1772728312351,6.18369347,2077.0,2076.0,4.20960773]
[1772728312677,6.18369347,2077.6,2076.2,4.20960773]
[1772728312979,6.18369347,2077.6,2076.4,4.20960773]
[1772728313278,6.18369347,2077.6,2076.5,1.098]
[1772728314586,7.3870629,2077.5,2076.6,1.20389097]
[1772728315253,0.001,2076.8,2076.6,1.20389097]
[1772728315560,7.3870629,2077.5,2076.6,1.20389097]
[1772728315947,7.3870629,2077.5,2076.5,2.30191415]
[1772728316181,7.3870629,2077.5,2076.4,4.20960773]
[1772728316389,1.20331655,2077.6,2076.4,4.20960773]
[1772728316598,0.001,2077.7,2076.4,4.20960773]
[1772728316760,0.32029851,2078.4,2076.8,4.20860773]
[1772728317102,7.33644261,2078.6,2076.9,5.35560773]
[1772728317381,7.33644261,2078.6,2077.0,4.25860773]
[1772728317554,2.64174914,2078.6,2077.0,4.25860773]
[1772728317750,6.18369347,2078.5,2077.1,1.097]
[1772728318780,6.18369347,2078.3,2077.1,1.20360117]
[1772728318981,6.18369347,2078.3,2076.8,1.20377503]
[1772728319185,6.18369347,2078.3,2076.7,1.20380541]
[1772728319386,1.20284834,2078.4,2076.5,1.20390928]
[1772728319387,6.18369347,2078.1,2076.5,1.20390928]
[1772728319587,6.30335106,2078.4,2076.3,1.31639105]
[1772728319588,6.18369347,2077.6,2076.3,1.31639105]
[1772728320166,6.18369347,2077.6,2076.3,0.11236581]
[1772728320395,6.18369347,2077.6,2076.3,1.31642991]
[1772728320792,6.18369347,2077.6,2076.4,4.25860773]
[1772728320793,7.38702323,2077.6,2076.4,4.25860773]
[1772728321189,7.38702323,2077.6,2076.3,2.41342991]
[1772728322265,7.38702323,2077.6,2076.3,6.67203764]
[1772728322594,7.38702323,2077.6,2076.3,1.31642991]
[1772728323094,7.38702323,2077.6,2076.3,5.57503764]
[1772728323888,7.38702323,2077.6,2076.4,4.25860773]
[1772728325105,7.38702323,2077.6,2076.4,1.20397763]
[1772728325267,7.38702323,2077.6,2076.3,2.41340402]
[1772728325465,6.18369347,2077.4,2076.3,2.41342137]
[1772728325665,6.18369347,2077.2,2076.3,2.41341817]
[1772728326014,6.18369347,2077.2,2076.3,2.41342117]
[1772728327110,7.38729464,2077.1,2076.3,2.41342117]
[1772728327306,7.38729464,2077.1,2076.5,0.0011]
[1772728328882,6.18369347,2077.1,2076.5,0.0011]
[1772728329283,7.38730425,2077.1,2076.5,0.0011]
[1772728329498,1.20360298,2077.1,2076.5,0.0011]
[1772728329673,1.20348529,2077.3,2076.5,0.0011]
[1772728330606,7.38717876,2077.3,2076.5,0.0011]
[1772728331890,6.18369347,2077.1,2076.5,0.0011]
[1772728332777,1.20348529,2077.3,2076.5,0.0011]
[1772728332778,7.38717876,2077.3,2076.5,0.0011]
[1772728332967,2.86193494,2077.2,2076.5,0.0011]
[1772728333168,6.18369347,2077.1,2076.5,0.0011]
[1772728333374,7.38735259,2077.0,2076.5,0.0011]
[1772728333569,6.18369347,2076.8,2076.3,0.11346581]
[1772728333774,1.20365912,2077.0,2076.3,1.31752029]
[1772728334001,7.38735259,2077.0,2076.3,1.31752029]
[1772728335428,7.38735259,2077.0,2076.3,0.11346581]
[1772728335429,7.38740134,2077.0,2076.3,0.11346581]
[1772728335621,7.38740134,2077.0,2076.3,1.31751559]
[1772728335622,7.38735827,2077.0,2076.3,1.31751559]
[1772728336122,7.38739858,2077.0,2076.3,1.31751559]
[1772728336818,7.38739858,2077.0,2076.3,0.11346581]
[1772728337130,6.18369347,2076.8,2076.3,0.0011]
[1772728337421,6.18369347,2076.6,2076.0,0.0011]
[1772728338995,6.06873638,2076.9,2076.0,0.0011]
[1772728339391,6.06873638,2076.7,2076.0,0.0011]
[1772728339597,7.50873638,2076.7,2076.0,0.0011]
[1772728339895,6.06873638,2076.5,2076.2,0.0011]
[1772728340110,6.06873638,2076.5,2075.9,0.0011]
[1772728340715,6.06873638,2076.3,2075.9,0.0011]
[1772728341795,1.20412291,2076.2,2075.9,0.0011]
[1772728342430,1.20402225,2076.4,2075.9,0.0011]
[1772728342604,7.27272546,2076.5,2075.9,0.0011]
[1772728343695,7.27272546,2076.5,2075.7,0.0011]
[1772728343696,6.06873638,2076.1,2075.7,0.0011]
[1772728345009,2.64612291,2076.2,2075.7,0.0011]
[1772728345194,7.27282501,2076.3,2075.7,0.0011]
[1772728345398,5.94716293,2077.0,2075.7,4.26190773]
[1772728345399,1.20373313,2076.9,2075.7,4.26190773]
[1772728345613,7.27241624,2077.0,2075.7,4.26190773]
[1772728345807,7.27241624,2077.0,2075.9,4.26080773]
[1772728345997,7.2723968,2077.0,2075.9,4.26080773]
[1772728346212,6.06873638,2077.0,2075.9,4.26080773]
[1772728346430,7.27241018,2077.0,2075.9,4.26080773]
[1772728346629,6.06873638,2077.0,2075.9,4.26080773]
[1772728346924,1.20363418,2077.1,2075.9,4.26080773]
[1772728347223,1.20363418,2077.1,2075.9,4.34442526]
[1772728347823,6.19193324,2077.1,2076.0,1.20423892]
[1772728348526,6.19193324,2077.1,2076.1,4.26080773]
[1772728350131,7.39512892,2077.8,2076.3,4.26080773]
[1772728350302,6.19193324,2077.6,2076.5,4.26080773]
[1772728350498,6.19193324,2077.6,2076.6,1.095]
[1772728350499,7.63593324,2077.6,2076.6,1.095]
[1772728350735,6.19193324,2077.4,2076.6,1.095]
[1772728351141,6.19193324,2077.7,2076.6,1.095]
[1772728351344,2.85871388,2077.6,2076.6,5.35580773]
[1772728351506,6.19193324,2077.7,2076.7,4.26080773]
[1772728351844,7.39530267,2077.5,2076.7,1.203833]
[1772728352026,7.39530267,2077.5,2076.3,4.26080773]
[1772728352027,7.39530267,2077.5,2076.3,1.20403484]
[1772728352328,0.001,2076.9,2076.3,1.20403484]
[1772728353004,6.19293324,2076.9,2076.2,0.0011]
[1772728353402,6.19293324,2076.9,2076.2,1.2052203]
[1772728353829,0.001,2076.9,2076.2,1.2052203]
[1772728354036,7.39540254,2077.4,2076.2,5.35690773]
[1772728355438,7.39540254,2077.4,2076.2,0.0011]
[1772728355622,6.19193324,2077.2,2076.2,1.0961]
[1772728356223,1.20360117,2077.1,2076.3,1.20406492]
[1772728357142,1.445,2077.5,2076.3,5.46487265]
[1772728357442,7.39510878,2077.9,2076.4,4.26080773]
[1772728357642,7.39507437,2077.9,2076.4,4.26080773]
[1772728358018,7.3950715,2077.9,2076.4,4.26080773]
[1772728358315,7.39508575,2077.9,2076.8,4.26080773]
[1772728358516,7.39507306,2077.9,2076.8,4.26080773]
[1772728358738,7.39507306,2077.9,2076.8,5.35580773]
[1772728359213,7.39507306,2077.9,2076.7,1.203833]
[1772728359214,6.19193324,2077.8,2076.7,1.203833]
[1772728360035,6.19193324,2077.8,2076.7,5.46464073]
[1772728360213,1.2031244,2078.0,2076.8,4.25164236]
[1772728360415,7.39505764,2078.0,2076.8,4.25164236]
[1772728360645,2.85921222,2077.9,2076.7,1.203833]
[1772728360815,6.19193324,2077.8,2076.7,1.203833]
[1772728362448,7.39497076,2078.1,2076.8,4.22853765]
[1772728363155,0.001,2078.4,2076.8,4.22853765]
[1772728363319,1.20385385,2078.4,2077.0,4.21602599]
[1772728363647,1.20385385,2078.4,2077.2,4.21602599]
[1772728363648,0.001,2078.4,2077.2,4.21602599]
[1772728364042,0.001,2078.4,2077.3,0.065536]
[1772728364247,0.001,2078.4,2077.5,5.4069751]
[1772728364449,6.19293324,2078.4,2077.5,2.29836943]
[1772728364649,0.001,2077.8,2077.3,4.81370944]
[1772728364818,0.001,2077.8,2077.3,5.90870944]
[1772728365021,0.001,2077.8,2077.2,1.095]
[1772728365845,0.001,2078.4,2077.2,5.28629665]
[1772728366047,6.19193324,2078.5,2077.2,5.28629665]
[1772728366233,6.19193324,2078.5,2077.2,1.095]
[1772728366433,6.19193324,2078.5,2077.2,2.29849693]
[1772728366434,6.19193324,2078.3,2077.2,2.29849693]
[1772728366853,6.19193324,2078.3,2076.9,4.81468712]
[1772728367053,6.19193324,2078.3,2076.9,5.90968712]
[1772728368327,1.2029641,2078.2,2076.9,5.90968712]
[1772728368530,6.19193324,2078.1,2076.9,5.90968712]
[1772728370166,6.19193324,2078.1,2076.9,10.0324636]
[1772728370363,6.19193324,2078.1,2077.1,1.20360117]
[1772728370563,4.81139337,2078.6,2077.2,4.12277648]
[1772728370564,7.59705431,2078.6,2077.2,4.12277648]
[1772728371667,1.20268638,2078.7,2077.4,4.1111544]
[1772728371873,13.89008987,2078.9,2077.6,4.1111544]
[1772728372066,10.28233296,2078.9,2077.6,4.1111544]
[1772728372275,3.20251571,2079.0,2077.6,4.1111544]
[1772728372455,6.39432171,2078.9,2077.8,4.09953043]
[1772728373751,2.0,2079.0,2077.8,4.09953043]
[1772728374046,6.39432171,2078.9,2077.7,2.29825359]
[1772728374475,6.39432171,2078.7,2077.7,2.29825359]
[1772728374744,1.20259883,2078.9,2077.8,4.07676546]
[1772728375298,6.8101959,2079.0,2077.8,4.07676546]
[1772728375299,3.202509,2079.0,2077.8,4.07676546]
[1772728375442,6.39432171,2078.9,2077.8,4.07676546]
[1772728375874,6.39432171,2078.9,2077.9,1.095]
[1772728376483,6.39432171,2078.7,2077.9,1.20311558]
[1772728377183,1.20261689,2078.8,2077.6,1.095]
[1772728377184,6.39432171,2078.5,2077.6,1.095]
[1772728377646,6.39432171,2078.5,2077.2,1.2034923]
[1772728377840,6.39432171,2078.5,2077.3,4.04337173]
[1772728378073,6.39432171,2078.7,2077.3,4.04337173]
[1772728378446,1.2027326,2078.6,2077.5,4.03238029]
[1772728379172,7.59705431,2078.6,2077.4,1.20342736]
[1772728379369,7.59705431,2078.6,2077.5,4.02148638]
[1772728379543,6.39432171,2078.6,2077.5,4.02148638]
[1772728379938,6.39432171,2078.6,2077.6,1.095]
[1772728380368,6.39432171,2078.6,2077.4,1.20342736]
[1772728380558,1.20279047,2078.5,2077.5,4.01067549]
[1772728380962,6.39432171,2078.6,2077.5,4.01067549]
[1772728380963,7.59707069,2078.6,2077.5,4.01067549]
[1772728381162,0.001,2078.7,2077.5,4.01067549]
[1772728381466,7.59801136,2078.7,2077.5,4.01067549]
[1772728381866,7.59800034,2078.7,2077.5,4.01067549]
[1772728382171,0.001,2078.7,2077.5,4.01067549]
[1772728382348,7.59801832,2078.7,2077.5,4.01067549]
[1772728382678,6.39432171,2078.5,2077.3,2.29845014]
[1772728383056,7.83632171,2078.5,2077.3,2.29845014]
[1772728383244,6.39432171,2078.5,2077.3,2.29845014]
[1772728383547,6.39432171,2078.5,2077.3,6.27727739]
[1772728383746,0.001,2078.7,2077.4,3.97882725]
[1772728384176,1.20367571,2078.7,2077.4,3.97882725]
[1772728384375,0.001,2078.7,2077.4,3.97882725]
[1772728384675,6.39532171,2078.7,2077.6,3.96835147]
[1772728386071,0.001,2078.7,2077.6,3.96835147]
[1772728386274,2.0,2079.0,2077.9,3.94664925]
[1772728386446,2.0,2079.0,2078.1,4.89023148]
[1772728386647,2.0,2079.0,2078.2,5.14961335]
[1772728386944,2.0,2079.0,2078.3,3.94664925]
[1772728387151,6.39432171,2079.3,2078.3,3.94664925]
[1772728387379,7.59668047,2079.3,2078.1,1.095]
[1772728387670,6.39432171,2079.1,2078.1,2.29799643]
[1772728388043,6.39432171,2079.1,2078.1,1.20299643]
[1772728388240,6.39432171,2079.1,2077.9,1.20313778]
[1772728388471,6.39432171,2078.9,2077.8,2.29816786]
[1772728388677,7.5969386,2078.8,2077.8,2.29816786]
[1772728389251,6.39432171,2078.8,2077.8,2.29816786]
[1772728389452,1.20260314,2078.9,2077.9,3.97451576]
[1772728389653,6.39432171,2079.2,2077.9,0.39935315]
[1772728389958,6.39432171,2079.0,2077.8,1.20316786]
[1772728390779,6.39432171,2078.8,2077.6,8.77715547]
[1772728391278,6.39432171,2078.8,2077.7,3.99226347]
[1772728391483,7.5968022,2079.1,2077.9,3.99226347]
[1772728392380,2.62524967,2079.3,2077.9,3.99226347]
[1772728392579,3.82758538,2079.3,2077.9,3.99226347]
[1772728392956,0.001,2078.8,2078.1,3.98217853]
[1772728393353,2.62524967,2079.3,2078.1,3.98217853]
[1772728393685,7.59654365,2079.5,2078.1,3.98217853]
[1772728393861,7.59654365,2079.5,2078.0,1.20307988]
[1772728394065,7.59654365,2079.5,2078.1,1.095]
[1772728394786,6.39432171,2079.3,2078.2,3.96223759]
[1772728394988,1.20217812,2079.6,2078.4,3.96223759]
[1772728395487,6.39432171,2079.5,2078.3,1.20290622]
[1772728397158,6.39432171,2079.5,2078.2,4.81162488]
[1772728397159,7.59657965,2079.5,2078.2,4.81162488]
[1772728398286,6.39432171,2079.3,2078.2,4.81162488]
[1772728398471,6.39432171,2079.3,2078.1,2.2979641]
[1772728398655,1.20225794,2079.5,2078.1,1.095]
[1772728398656,6.39432171,2079.1,2078.1,1.095]